fUSD/lending_fUSD_20250414
["ID","MTS","AMOUNT","RATE_DAILY","PERIOD"]
[358034297,1744660262141,-2761.46,0.00019317,2]
[358034298,1744660262150,-2761.46,0.00019317,2]
[358034299,1744660262159,-2761.46,0.00019317,2]
[358034300,1744660262172,-2761.46,0.00019317,2]
[358034301,1744660262181,-2761.46,0.00019317,2]
[358034302,1744660262191,-2761.46,0.00019317,2]
[358034303,1744660262200,-2761.46,0.00019317,2]
[358034304,1744660262211,-2761.46,0.00019317,2]
[358034305,1744660262220,-2761.46,0.00019317,2]
[358034306,1744660262229,-2761.46,0.00019317,2]
[358034307,1744660262238,-2761.46,0.00019317,2]
[358034308,1744660262247,-2761.46,0.00019317,2]
[358034309,1744660262258,-2761.46,0.00019317,2]
[358034310,1744660262267,-2761.46,0.00019317,2]
[358034311,1744660262276,-2761.46,0.00019317,2]
[358034312,1744660262285,-2761.46,0.00019317,2]
[358034313,1744660262295,-2761.46,0.00019317,2]
[358034314,1744660262304,-2761.50439288,0.00019317,2]
[358034315,1744660262313,-150.0,0.00019317,2]
[358034316,1744660262323,-150.0,0.00019318,2]
[358034317,1744660262332,-1000.0,0.0001932,2]
[358034318,1744660262343,-150.0,0.00019321,2]
[358034319,1744660262352,-150.0,0.00019328,2]
[358034320,1744660262363,-150.0,0.0001933,2]
[358034321,1744660262372,-150.0,0.00019335,2]
[358034322,1744660262381,-150.0,0.00019336,2]
[358034323,1744660262390,-250.0,0.00019339,2]
[358034324,1744660262400,-150.0,0.00019346,2]
[358034325,1744660262410,-150.0,0.00019347,2]
[358034326,1744660262420,-150.0,0.00019347,2]
[358034327,1744660262429,-150.0,0.00019352,2]
[358034328,1744660262438,-400.0,0.00019357,2]
[358034329,1744660262450,-150.0,0.0001936,2]
[358034330,1744660262459,-150.0,0.00019362,2]
[358034331,1744660262477,-150.0,0.00019362,2]
[358034332,1744660262486,-714.72,0.00019362,2]
[358034333,1744660262496,-370.1,0.00019362,2]
[358034334,1744660262506,-500.0,0.00019362,2]
[358034335,1744660262515,-500.0,0.00019362,2]
[358034336,1744660262525,-24953.35,0.00019362,2]
[358034337,1744660262535,-500.0,0.00019362,2]
[358034338,1744660262544,-500.0,0.00019362,2]
[358034339,1744660262554,-851.65,0.00019362,2]
[358034340,1744660262688,-500.0,0.00019362,2]
[358034341,1744660262700,-663.79,0.00019362,2]
[358034342,1744660262710,-731.16,0.00019362,2]
[358034343,1744660262720,-1702.97,0.00019362,2]
[358034344,1744660262729,-523.08,0.00019362,2]
[358034345,1744660262739,-632.52,0.00019362,2]
[358034346,1744660262748,-500.0,0.00019362,2]
[358034347,1744660262757,-500.0,0.00019362,2]
[358034348,1744660262767,-2562.07,0.00019362,2]
[358034349,1744660262776,-3475.59,0.00019362,2]
[358034350,1744660262786,-425.15499875,0.00019362,2]
[358034351,1744660262796,-3849.91,0.00019362,2]
[358034352,1744660262806,-150.0,0.00019363,2]
[358034353,1744660262815,-150.0,0.00019365,2]
[358034354,1744660262826,-150.0,0.00019372,2]
[358034355,1744660262836,-300.0,0.00019376,2]
[358034356,1744660262846,-150.0,0.00019377,2]
[358034357,1744660262857,-150.0,0.00019379,2]
[358034358,1744660262867,-150.0,0.0001938,2]
[358034359,1744660262877,-150.0,0.00019381,2]
[358034360,1744660262887,-150.0,0.00019387,2]
[358034361,1744660262896,-150.0,0.00019387,2]
[358034362,1744660262906,-250.0,0.00019389,2]
[358034363,1744660262915,-150.0,0.00019389,2]
[358034364,1744660262924,-843.69826833,0.000194,2]
[358034365,1744660262933,-5089.27140463,0.00019452,2]
[358034366,1744660262943,-170.94997495,0.00019497,2]
[358034367,1744660262951,-250.0,0.000195,2]
[358034368,1744660262959,-250.0,0.000195,2]
[358034369,1744660262967,-420.0,0.00019518,2]
[358034370,1744660262978,-970.35,0.00019538,2]
[358034371,1744660262987,-2060.14409783,0.0001961,2]
[358034372,1744660262996,-166.79,0.00019635,2]
[358034373,1744660263005,-5089.27140463,0.00019676,2]
[358034374,1744660263014,-6663.56229763,0.00019682,2]
[358034375,1744660263024,-1140.80907194,0.00019682,2]
[358034376,1744660263034,-1336.46167761,0.00019684,2]
[358034377,1744660263045,-822.1,0.00019685,2]
[358034378,1744660263056,-615.88,0.00019685,2]
[358034379,1744660263067,-20009.83708124,0.00019686,2]
[358034380,1744660263077,-2888.40444695,0.00019686,2]
[358034381,1744660263087,-300.0,0.00019689,2]
[358034382,1744660263097,-2281.61814381,0.00019696,2]
[358034383,1744660263109,-1140.80907194,0.00019696,2]
[358034384,1744660263119,-1042.74794093,0.00019697,2]
[358034385,1744660263131,-755.6342398,0.00019698,2]
[358034386,1744660263142,-500.0,0.00019699,2]
[358034387,1744660263152,-222.34,0.00019699,2]
[358034388,1744660263164,-28581.7,0.000197,2]
[358034389,1744660263176,-178.41066107,0.000197,2]
[358034390,1744660263186,-1366.17390284,0.00019709,2]
[358034391,1744660263196,-2281.61814381,0.0001971,2]
[358034392,1744660263207,-20009.83708124,0.00019712,2]
[358034393,1744660263219,-1366.17390284,0.00019718,2]
[358034394,1744660263229,-1042.74794093,0.00019719,2]
[358034395,1744660263239,-2888.40444695,0.0001972,2]
[358034396,1744660263251,-1042.74794093,0.00019722,2]
[358034397,1744660263263,-507.99662815,0.00019726,2]
[358034398,1744660263273,-174.61919141,0.00019726,2]
[358034399,1744660263284,-2281.61814381,0.00019735,2]
[358034400,1744660263294,-500.0,0.00019736,2]
[358034401,1744660263305,-500.0,0.00019736,2]
[358034402,1744660263315,-755.6342398,0.00019737,2]
[358034403,1744660263325,-20009.83708124,0.00019738,2]
[358034404,1744660263335,-6663.56229763,0.00019739,2]
[358034405,1744660263345,-1366.17390284,0.00019744,2]
[358034406,1744660263355,-1140.80907194,0.00019751,2]
[358034407,1744660263365,-755.6342398,0.00019753,2]
[358034408,1744660263376,-768.94,0.00019762,2]
[358034409,1744660263386,-6663.56229763,0.00019764,2]
[358034410,1744660263395,-1336.46167761,0.00019765,2]
[358034411,1744660263405,-500.0,0.00019773,2]
[358034412,1744660263416,-500.0,0.00019773,2]
[358034413,1744660263426,-500.0,0.00019773,2]
[358034414,1744660263436,-538.77045901,0.00019773,2]
[358034415,1744660263445,-500.0,0.00019773,2]
[358034416,1744660263454,-500.98924061,0.00019773,2]
[358034417,1744660263463,-360.26739713,0.00019773,2]
[358034418,1744660263472,-159.63644902,0.00019773,2]
[358034419,1744660263481,-500.0,0.00019773,2]
[358034420,1744660263489,-500.0,0.00019773,2]
[358034421,1744660263498,-159.63866716,0.00019773,2]
[358034422,1744660263507,-159.9813701,0.00019773,2]
[358034423,1744660263516,-159.64506623,0.00019773,2]
[358034424,1744660263524,-1336.46167761,0.00019774,2]
[358034425,1744660263534,-2888.40444695,0.00019789,2]
[358034426,1744660263545,-500.0,0.00019799,2]
[358034427,1744660263555,-500.0,0.00019799,2]
[358034428,1744660263565,-500.0,0.00019799,2]
[358034429,1744660263575,-714.72,0.00019799,2]
[358034430,1744660263585,-714.72,0.00019799,2]
[358034431,1744660263596,-500.0,0.00019799,2]
[358034432,1744660263606,-500.0,0.00019799,2]
[358034433,1744660263617,-822.1,0.00019799,2]
[358034434,1744660263628,-190.99,0.00019799,2]
[358034435,1744660263638,-24953.35,0.00019799,2]
[358034436,1744660263648,-24953.35,0.00019799,2]
[358034437,1744660263658,-500.0,0.00019799,2]
[358034438,1744660263668,-500.0,0.00019799,2]
[358034439,1744660263679,-500.0,0.00019799,2]
[358034440,1744660263688,-500.0,0.00019799,2]
[358034441,1744660263698,-768.94,0.00019799,2]
[358034442,1744660263708,-851.65,0.00019799,2]
[358034443,1744660263718,-500.0,0.00019799,2]
[358034444,1744660263727,-851.65,0.00019799,2]
[358034445,1744660263736,-500.0,0.00019799,2]
[358034446,1744660263746,-152.978498,0.00019799,2]
[358034447,1744660263755,-663.79,0.00019799,2]
[358034448,1744660263765,-663.79,0.00019799,2]
[358034449,1744660263775,-151.0,0.00019799,2]
[358034450,1744660263785,-731.16,0.00019799,2]
[358034451,1744660263795,-731.16,0.00019799,2]
[358034452,1744660263804,-1702.97,0.00019799,2]
[358034453,1744660263813,-1702.97,0.00019799,2]
[358034454,1744660263823,-523.08,0.00019799,2]
[358034455,1744660263832,-523.08,0.00019799,2]
[358034456,1744660263842,-632.52,0.00019799,2]
[358034457,1744660263851,-632.52,0.00019799,2]
[358034458,1744660263861,-151.0,0.00019799,2]
[358034459,1744660263871,-500.0,0.00019799,2]
[358034460,1744660263881,-388.85,0.00019799,2]
[358034461,1744660263890,-500.0,0.00019799,2]
[358034462,1744660263899,-500.0,0.00019799,2]
[358034463,1744660263909,-615.88,0.00019799,2]
[358034464,1744660263919,-2562.07,0.00019799,2]
[358034465,1744660263929,-2562.07,0.00019799,2]
[358034466,1744660263939,-3475.59,0.00019799,2]
[358034467,1744660263949,-3475.59,0.00019799,2]
[358034468,1744660263959,-3849.91,0.00019799,2]
[358034469,1744660263969,-3849.91,0.00019799,2]
[358034470,1744660263980,-250000.0,0.000198,2]
[358034471,1744660263990,-151.0,0.000198,2]
[358034472,1744660264000,-151.0,0.000198,2]
[358034473,1744660264010,-165.743122,0.000198,2]
[358034474,1744660264020,-152.968052,0.000198,2]
[358034475,1744660264029,-151.0,0.000198,2]
[358034476,1744660264039,-151.0,0.000198,2]
[358034477,1744660264049,-151.0,0.000198,2]
[358034478,1744660264059,-412.122852,0.000198,2]
[358034479,1744660264070,-412.122852,0.000198,2]
[358034480,1744660264079,-151.0,0.000198,2]
[358034481,1744660264089,-276.79430254,0.000198,2]
[358034482,1744660264099,-500.0,0.00019863,2]
[358034483,1744660264109,-424.21559856,0.00019863,2]
[358034484,1744660264119,-500.0,0.00019863,2]
[358034485,1744660264129,-150.0,0.00019869,2]
[358034486,1744660264139,-3027.10178527,0.0001987,2]
[358034487,1744660264149,-5749.48454875,0.0001988,2]
[358034488,1744660264159,-172.0626204,0.00019898,3]
[358034489,1744660264175,-218.3357035,0.00019898,2]
[358034490,1744660264184,-166.50981855,0.000199,2]
[358034491,1744660264194,-843.69826833,0.000199,2]
[358034492,1744660264203,-170.94997495,0.000199,2]
[358034493,1744660264215,-5089.27140463,0.000199,2]
[358034494,1744660264226,-251.32141769,0.000199,2]
[358034495,1744660264237,-162.03794764,0.00019973,2]
[358034496,1744660264247,-500.0,0.00019998,2]
[358034497,1744660264258,-189.34,0.00019998,2]
[358034498,1744660264268,-714.72,0.00019998,2]
[358034499,1744660264278,-714.72,0.00019998,2]
[358034500,1744660264288,-500.0,0.00019998,2]
[358034501,1744660264298,-500.0,0.00019998,2]
[358034502,1744660264308,-822.1,0.00019998,2]
[358034503,1744660264318,-822.1,0.00019998,2]
[358034504,1744660264329,-24953.35,0.00019998,2]
[358034505,1744660264339,-24953.35,0.00019998,2]
[358034506,1744660264349,-500.0,0.00019998,2]
[358034507,1744660264361,-500.0,0.00019998,2]
[358034508,1744660264371,-500.0,0.00019998,2]
[358034509,1744660264382,-500.0,0.00019998,2]
[358034510,1744660264392,-768.94,0.00019998,2]
[358034511,1744660264402,-768.94,0.00019998,2]
[358034512,1744660264412,-851.65,0.00019998,2]
[358034513,1744660264421,-500.0,0.00019998,2]
[358034514,1744660264431,-851.65,0.00019998,2]
[358034515,1744660264440,-500.0,0.00019998,2]
[358034516,1744660264450,-663.79,0.00019998,2]
[358034517,1744660264459,-663.79,0.00019998,2]
[358034518,1744660264469,-731.16,0.00019998,2]
[358034519,1744660264477,-731.16,0.00019998,2]
[358034520,1744660264485,-1702.97,0.00019998,2]
[358034521,1744660264494,-1139.97820958,0.00019998,2]
[358034522,1744660264512,-562.99179042,0.00019998,2]
[358034523,1744660264521,-523.08,0.00019998,2]
[358034524,1744660264531,-523.08,0.00019998,2]
[358034525,1744660264540,-632.52,0.00019998,2]
[358034526,1744660264550,-328.3405093,0.00019998,2]
[358034527,1744660264561,-304.1794907,0.00019998,2]
[358034528,1744660264570,-500.0,0.00019998,2]
[358034529,1744660264579,-500.0,0.00019998,2]
[358034530,1744660264589,-615.88,0.00019998,2]
[358034531,1744660264598,-615.88,0.00019998,2]
[358034532,1744660264610,-2562.07,0.00019998,2]
[358034533,1744660264619,-2562.07,0.00019998,2]
[358034534,1744660264630,-3475.59,0.00019998,2]
[358034535,1744660264639,-1191.71158431,0.00019998,2]
[358034536,1744660264654,-2283.87841569,0.00019998,2]
[358034537,1744660264666,-3849.91,0.00019998,2]
[358034538,1744660264676,-3849.91,0.00019998,2]
[358034539,1744660264686,-3386.0,0.00019999,2]
[358034540,1744660264696,-1010.1394,0.00019999,2]
[358034541,1744660264706,-500.0,0.00019999,2]
[358034542,1744660264717,-264.05,0.00019999,2]
[358034543,1744660264726,-500.0,0.00019999,2]
[358034544,1744660264736,-431.93,0.00019999,2]
[358034545,1744660264746,-151.0,0.00019999,2]
[358034546,1744660264756,-290.583845,0.00019999,2]
[358034547,1744660264767,-151.0,0.00019999,2]
[358034548,1744660264777,-154.403354,0.00019999,2]
[358034549,1744660264787,-153.277191,0.00019999,2]
[358034550,1744660264797,-714.72,0.00019999,2]
[358034551,1744660264808,-714.72,0.00019999,2]
[358034552,1744660264818,-714.72,0.00019999,2]
[358034553,1744660264827,-714.72,0.00019999,2]
[358034554,1744660264837,-714.72,0.00019999,2]
[358034555,1744660264847,-714.72,0.00019999,2]
[358034556,1744660264859,-14.34190172,0.00019999,2]
[358034557,1744660264872,-641.01223463,0.00019999,2]
[358034558,1744660265134,-500.0,0.00017984,2]
[358034559,1744660265144,-10.09,0.00017985,2]
[358034560,1744660266811,-489.91,0.00017985,2]
[358034561,1744660266821,-500.0,0.00017997,2]
[358034562,1744660266831,-59.36586365,0.00019999,2]
[358034563,1744660266841,-353.84901857,0.00019999,2]
[358034564,1744660266853,-360.87098143,0.00019999,2]
[358034565,1744660266868,-142.12901857,0.00019999,2]
[358034566,1744660266880,-572.59098143,0.00019999,2]
[358034567,1744660266891,-714.95,0.00019999,2]
[358034568,1744660266901,-500.0,0.00019999,2]
[358034569,1744660266911,-500.0,0.00019999,2]
[358034570,1744660266922,-500.0,0.00019999,2]
[358034571,1744660266932,-346.45660864,0.00019999,2]
[358034572,1744660266945,-822.1,0.00019999,2]
[358034573,1744660266955,-98.99079795,0.00019999,2]
[358034574,1744660266969,-723.10920205,0.00019999,2]
[358034575,1744660266981,-822.1,0.00019999,2]
[358034576,1744660266992,-822.1,0.00019999,2]
[358034577,1744660267003,-822.1,0.00019999,2]
[358034578,1744660267013,-822.1,0.00019999,2]
[358034579,1744660267023,-822.1,0.00019999,2]
[358034580,1744660267033,-822.1,0.00019999,2]
[358034581,1744660267043,-822.1,0.00019999,2]
[358034582,1744660267053,-711.78905387,0.00019999,2]
[358034583,1744660267222,-321.12383078,0.00017984,2]
[358034584,1744660267234,-178.87616922,0.00017984,2]
[358034585,1744660267245,-368.21,0.00017998,2]
[358034586,1744660267256,-1356.13111288,0.00018109,2]
[358034587,1744660267266,-110.43094613,0.00019999,2]
[358034588,1744660267277,-2018.07164177,0.00019999,2]
[358034589,1744660267641,-477.64,0.00019999,2]
[358034590,1744660267659,-22457.63835823,0.00019999,2]
[358034591,1744660267671,-24953.35,0.00019999,2]
[358034592,1744660267682,-24953.35,0.00019999,2]
[358034593,1744660267691,-2369.30548129,0.00019999,2]
[358034594,1744660267709,-849.72888,0.00019999,2]
[358034595,1744660267721,-11860.89986522,0.00019999,2]
[358034596,1744660267735,-770.43587991,0.00019999,2]
[358034597,1744660267747,-9102.97989358,0.00019999,2]
[358034598,1744660267758,-24860.54286542,0.00019999,2]
[358034599,1744660267770,-92.80713458,0.00019999,2]
[358034600,1744660267780,-762.85087473,0.00019999,2]
[358034601,1744660267792,-24190.49912527,0.00019999,2]
[358034602,1744660267802,-24953.35,0.00019999,2]
[358034603,1744660267811,-24953.35,0.00019999,2]
[358034604,1744660267821,-24953.35,0.00019999,2]
[358034605,1744660267831,-24953.4922,0.00019999,2]
[358034606,1744660267840,-500.0,0.00019999,2]
[358034607,1744660267850,-500.0,0.00019999,2]
[358034608,1744660267861,-500.0,0.00019999,2]
[358034609,1744660267871,-500.0,0.00019999,2]
[358034610,1744660267880,-500.0,0.00019999,2]
[358034611,1744660267890,-160.92,0.00019999,2]
[358034612,1744660267900,-500.0,0.00019999,2]
[358034613,1744660267910,-500.0,0.00019999,2]
[358034614,1744660267920,-500.0,0.00019999,2]
[358034615,1744660267929,-500.0,0.00019999,2]
[358034616,1744660267939,-477.21,0.00019999,2]
[358034617,1744660267949,-768.94,0.00019999,2]
[358034618,1744660267958,-768.94,0.00019999,2]
[358034619,1744660267968,-768.94,0.00019999,2]
[358034620,1744660267977,-851.65,0.00019999,2]
[358034621,1744660267988,-768.94,0.00019999,2]
[358034622,1744660267997,-500.0,0.00019999,2]
[358034623,1744660268007,-851.65,0.00019999,2]
[358034624,1744660268016,-768.94,0.00019999,2]
[358034625,1744660268025,-500.0,0.00019999,2]
[358034626,1744660268035,-851.65,0.00019999,2]
[358034627,1744660268044,-768.94,0.00019999,2]
[358034628,1744660268053,-500.0,0.00019999,2]
[358034629,1744660268063,-851.65,0.00019999,2]
[358034630,1744660268072,-768.94,0.00019999,2]
[358034631,1744660268082,-624.72,0.00019999,2]
[358034632,1744660268092,-851.65,0.00019999,2]
[358034633,1744660268102,-768.94,0.00019999,2]
[358034634,1744660268114,-851.65,0.00019999,2]
[358034635,1744660268123,-769.06616508,0.00019999,2]
[358034636,1744660268132,-851.65,0.00019999,2]
[358034637,1744660268142,-851.65,0.00019999,2]
[358034638,1744660268151,-851.65,0.00019999,2]
[358034639,1744660268161,-851.81,0.00019999,2]
[358034640,1744660268172,-663.79,0.00019999,2]
[358034641,1744660268185,-663.79,0.00019999,2]
[358034642,1744660268195,-663.79,0.00019999,2]
[358034643,1744660268205,-663.79,0.00019999,2]
[358034644,1744660268215,-663.79,0.00019999,2]
[358034645,1744660268226,-663.79,0.00019999,2]
[358034646,1744660268237,-663.79,0.00019999,2]
[358034647,1744660268247,-663.79,0.00019999,2]
[358034648,1744660268257,-663.79,0.00019999,2]
[358034649,1744660268267,-663.90598682,0.00019999,2]
[358034650,1744660268276,-151.0,0.00019999,2]
[358034651,1744660268286,-731.16,0.00019999,2]
[358034652,1744660268295,-731.16,0.00019999,2]
[358034653,1744660268306,-731.16,0.00019999,2]
[358034654,1744660268316,-731.16,0.00019999,2]
[358034655,1744660268327,-731.16,0.00019999,2]
[358034656,1744660268337,-731.16,0.00019999,2]
[358034657,1744660268347,-731.16,0.00019999,2]
[358034658,1744660268356,-731.16,0.00019999,2]
[358034659,1744660268368,-731.16,0.00019999,2]
[358034660,1744660268377,-731.39,0.00019999,2]
[358034661,1744660268388,-1702.97,0.00019999,2]
[358034662,1744660268398,-1702.97,0.00019999,2]
[358034663,1744660268408,-1702.97,0.00019999,2]
[358034664,1744660268417,-1702.97,0.00019999,2]
[358034665,1744660268427,-1702.97,0.00019999,2]
[358034666,1744660268437,-1702.97,0.00019999,2]
[358034667,1744660268447,-1702.97,0.00019999,2]
[358034668,1744660268457,-1702.97,0.00019999,2]
[358034669,1744660268467,-1702.97,0.00019999,2]
[358034670,1744660268477,-1703.19520117,0.00019999,2]
[358034671,1744660268487,-523.08,0.00019999,2]
[358034672,1744660268496,-523.08,0.00019999,2]
[358034673,1744660268506,-523.08,0.00019999,2]
[358034674,1744660268516,-523.08,0.00019999,2]
[358034675,1744660268526,-523.08,0.00019999,2]
[358034676,1744660268536,-523.08,0.00019999,2]
[358034677,1744660268546,-523.08,0.00019999,2]
[358034678,1744660268556,-523.08,0.00019999,2]
[358034679,1744660268565,-523.08,0.00019999,2]
[358034680,1744660268575,-523.17869704,0.00019999,2]
[358034681,1744660268584,-632.52,0.00019999,2]
[358034682,1744660268594,-632.52,0.00019999,2]
[358034683,1744660268603,-632.52,0.00019999,2]
[358034684,1744660268614,-284.743014,0.00019999,2]
[358034685,1744660268623,-632.52,0.00019999,2]
[358034686,1744660268633,-632.52,0.00019999,2]
[358034687,1744660268645,-632.52,0.00019999,2]
[358034688,1744660268655,-632.52,0.00019999,2]
[358034689,1744660268665,-632.52,0.00019999,2]
[358034690,1744660268674,-632.52,0.00019999,2]
[358034691,1744660268683,-632.70756098,0.00019999,2]
[358034692,1744660268692,-500.0,0.00019999,2]
[358034693,1744660268704,-500.0,0.00019999,2]
[358034694,1744660268714,-500.0,0.00019999,2]
[358034695,1744660268724,-500.0,0.00019999,2]
[358034696,1744660268733,-500.0,0.00019999,2]
[358034697,1744660268743,-500.0,0.00019999,2]
[358034698,1744660268752,-500.0,0.00019999,2]
[358034699,1744660268762,-576.0382206,0.00019999,2]
[358034700,1744660268772,-615.88,0.00019999,2]
[358034701,1744660268781,-615.88,0.00019999,2]
[358034702,1744660268791,-615.88,0.00019999,2]
[358034703,1744660268800,-2562.07,0.00019999,2]
[358034704,1744660268809,-615.88,0.00019999,2]
[358034705,1744660268819,-2562.07,0.00019999,2]
[358034706,1744660268830,-615.88,0.00019999,2]
[358034707,1744660268839,-2562.07,0.00019999,2]
[358034708,1744660268849,-615.88,0.00019999,2]
[358034709,1744660268861,-2562.07,0.00019999,2]
[358034710,1744660268871,-615.88,0.00019999,2]
[358034711,1744660268881,-2562.07,0.00019999,2]
[358034712,1744660268891,-615.88,0.00019999,2]
[358034713,1744660268901,-2562.07,0.00019999,2]
[358034714,1744660268911,-615.88,0.00019999,2]
[358034715,1744660268920,-2562.07,0.00019999,2]
[358034716,1744660268931,-616.03048995,0.00019999,2]
[358034717,1744660268940,-2562.07,0.00019999,2]
[358034718,1744660268950,-2562.07,0.00019999,2]
[358034719,1744660268960,-2562.11550953,0.00019999,2]
[358034720,1744660268970,-3475.59,0.00019999,2]
[358034721,1744660268980,-3475.59,0.00019999,2]
[358034722,1744660268990,-3475.59,0.00019999,2]
[358034723,1744660269002,-3475.59,0.00019999,2]
[358034724,1744660269012,-3475.59,0.00019999,2]
[358034725,1744660269022,-3475.59,0.00019999,2]
[358034726,1744660269032,-3475.59,0.00019999,2]
[358034727,1744660269042,-3475.59,0.00019999,2]
[358034728,1744660269051,-3475.59,0.00019999,2]
[358034729,1744660269061,-3475.6543,0.00019999,2]
[358034730,1744660269071,-3849.91,0.00019999,2]
[358034731,1744660269080,-3849.91,0.00019999,2]
[358034732,1744660269090,-3849.91,0.00019999,2]
[358034733,1744660269100,-3849.91,0.00019999,2]
[358034734,1744660269111,-3849.91,0.00019999,2]
[358034735,1744660269121,-3849.91,0.00019999,2]
[358034736,1744660269132,-3849.91,0.00019999,2]
[358034737,1744660269143,-3849.91,0.00019999,2]
[358034738,1744660269156,-3849.91,0.00019999,2]
[358034739,1744660269170,-3850.13618225,0.00019999,2]
[358034740,1744660269180,-182238.33216008,0.0002,2]
[358034741,1744660269190,-200.0,0.0002,2]
[358034742,1744660269200,-1001614.70519023,0.0002,2]
[358034748,1744660520359,203.29,0.00017173,2]
[358034749,1744660548192,20052.93,0.00017173,2]
[358034750,1744660624033,200.0,0.00017173,7]
[358034751,1744660671584,300.0,0.00017358,2]
[358034752,1744660697116,1000.0,0.00017358,2]
[358034753,1744661128707,171.79,0.00013838,2]
[358034754,1744661236130,-253.19038254,0.00017883,2]
[358034755,1744661269036,882.51,0.00015255,2]
[358034756,1744661312291,292.95,0.00017143,2]
[358034757,1744661349122,-277.6144,0.00017519,2]
[358034758,1744661380257,163.98,0.00017143,2]
[358034759,1744661400425,250.0,0.00017143,2]
[358034764,1744661422111,1143.05,0.0001715,2]
[358034772,1744661432076,-452.95011032,0.00017519,2]
[358034773,1744661432181,-151.94548968,0.00017519,2]
[358034774,1744661432190,-250.0,0.00017603,2]
[358034775,1744661432200,-166.6,0.00017687,2]
[358034776,1744661432210,-250.0,0.00017771,2]
[358034777,1744661432220,-300.0,0.00017883,2]
[358034778,1744661432229,-300.0,0.00017883,2]
[358034780,1744661432239,-500.0,0.00017884,2]
[358034782,1744661432249,-1000.0,0.00017884,2]
[358034784,1744661432258,-166.7994,0.00017884,2]
[358034786,1744661432267,-342.2159,0.00017884,2]
[358034788,1744661432277,-1599.35721032,0.00017885,2]
[358034790,1744661432288,-2891.6764344,0.00017885,2]
[358034792,1744661432299,-377.70887099,0.00017885,2]
[358034873,1744661438029,-515.85304197,0.00017885,2]
[358034874,1744661438132,-6414.51854232,0.00017885,2]
[358034875,1744661438142,-644.0005,0.00017885,2]
[358034876,1744661438151,-1123.15528588,0.00017897,2]
[358034877,1744661438162,-3486.8362,0.00017898,2]
[358034878,1744661438173,-150.905,0.00017967,2]
[358034879,1744661438183,-3339.39,0.00017967,2]
[358034880,1744661438192,-168.60121112,0.00017973,2]
[358034881,1744661438202,-259.48888106,0.00017973,2]
[358034882,1744661438217,-500.0,0.00017973,2]
[358034883,1744661438226,-305.55198322,0.00017973,2]
[358034884,1744661438235,-493.67112628,0.00017973,2]
[358034885,1744661438244,-152.93483458,0.00017973,2]
[358034886,1744661438253,-239.5104396,0.00017973,2]
[358034887,1744661438262,-500.0,0.00017973,2]
[358034888,1744661438271,-500.0,0.00017973,2]
[358034889,1744661438280,-500.0,0.00017973,2]
[358034890,1744661438290,-153.17717981,0.00017973,2]
[358034891,1744661438299,-500.0,0.00017973,2]
[358034892,1744661438308,-280.03717627,0.00017973,2]
[358034893,1744661438317,-263.53015061,0.00017973,2]
[358034894,1744661438326,-150.99,0.00017973,2]
[358034895,1744661438335,-999.99,0.00017973,2]
[358034896,1744661438345,-500.0,0.00017984,2]
[358034897,1744661438354,-390.14226514,0.00017984,2]
[358034898,1744661438373,-500.0,0.00017984,2]
[358034899,1744661438384,-500.0,0.00017984,2]